bitfinex/quotes_BTCUSD_20240803
["timestamp","ask_amount","ask_price","bid_price","bid_amount"]
[1722690158920,1.43368124,62077.0,62076.0,0.101913]
[1722690159135,1.69871322,62077.0,62076.0,0.101913]
[1722690159313,0.0654,62067.0,62061.0,0.000913]
[1722690159570,0.604232,62062.0,62061.0,0.000913]
[1722690159788,1.15798424,62062.0,62061.0,0.000913]
[1722690160000,1.42267724,62062.0,62061.0,0.000913]
[1722690160200,1.52267724,62062.0,62061.0,0.000913]
[1722690160599,1.27098424,62062.0,62061.0,0.000913]
[1722690161855,1.27598424,62062.0,62061.0,0.000913]
[1722690163105,1.28681495,62062.0,62061.0,0.000913]
[1722690167273,1.29679195,62062.0,62061.0,0.000913]
[1722690169844,0.87766824,62062.0,62061.0,0.000913]
[1722690170062,0.77766824,62062.0,62061.0,0.000913]
[1722690175856,1.18696124,62062.0,62061.0,0.000913]
[1722690182678,0.53597524,62062.0,62061.0,0.000913]
[1722690183134,1.01936124,62062.0,62061.0,0.000913]
[1722690183331,1.18316124,62062.0,62061.0,0.000913]
[1722690184056,1.18316124,62062.0,62058.0,0.009977]
[1722690184057,0.86936398,62059.0,62058.0,0.009977]
[1722690184286,1.71852822,62059.0,62058.0,0.009977]
[1722690184500,1.80513124,62059.0,62058.0,0.009977]
[1722690184696,1.82813124,62059.0,62058.0,0.009977]
[1722690185147,1.40662624,62059.0,62058.0,0.009977]
[1722690185769,1.41662624,62059.0,62058.0,0.009977]
[1722690186222,1.66833124,62059.0,62058.0,0.009977]
[1722690186439,1.89327871,62059.0,62058.0,0.009977]
[1722690186638,1.90727871,62059.0,62058.0,0.009977]
[1722690187513,1.92127871,62059.0,62058.0,0.009977]
[1722690187977,0.94147173,62059.0,62058.0,0.009977]
[1722690188218,0.88972124,62059.0,62058.0,0.009977]
[1722690188388,1.13142624,62059.0,62058.0,0.009977]
[1722690188651,0.88972124,62059.0,62058.0,0.009977]
[1722690189662,0.87572124,62059.0,62058.0,0.009977]
[1722690189906,0.88972124,62059.0,62058.0,0.009977]
[1722690190270,0.87572124,62059.0,62058.0,0.009977]
[1722690190669,0.028,62059.0,62058.0,0.08188002]
[1722690191056,0.028,62059.0,62058.0,0.09854183]
[1722690191658,0.014,62059.0,62058.0,0.09854183]
[1722690192059,0.028,62059.0,62058.0,0.09854183]
[1722690192673,0.014,62059.0,62058.0,0.09854183]
[1722690192887,0.53401624,62059.0,62058.0,0.09854183]
[1722690193092,0.77572124,62059.0,62058.0,0.02663881]
[1722690193386,0.78972124,62059.0,62058.0,0.009977]
[1722690193793,1.00342624,62059.0,62058.0,0.009977]
[1722690194249,1.00342624,62059.0,62058.0,0.011977]
[1722690194461,1.00442624,62059.0,62058.0,0.009977]
[1722690194865,1.01442624,62059.0,62058.0,0.009977]
[1722690195097,1.12182624,62059.0,62058.0,0.009977]
[1722690195325,1.90265688,62059.0,62058.0,0.009977]
[1722690195531,1.99948156,62059.0,62058.0,0.009977]
[1722690195752,2.81648156,62059.0,62058.0,0.009977]
[1722690196155,2.81548156,62059.0,62058.0,0.009977]
[1722690196368,2.57377656,62059.0,62058.0,0.009977]
[1722690196577,2.57577656,62059.0,62058.0,0.009977]
[1722690196786,2.56037958,62059.0,62058.0,0.009977]
[1722690197000,2.56837958,62059.0,62058.0,0.009977]
[1722690197223,2.59095185,62059.0,62058.0,0.009977]
[1722690197491,2.59134883,62059.0,62058.0,0.009977]
[1722690197691,2.56995185,62059.0,62058.0,0.009977]
[1722690197878,2.59795185,62059.0,62058.0,0.009977]
[1722690198089,2.58395185,62059.0,62058.0,0.009977]
[1722690198295,2.73597108,62059.0,62058.0,0.009977]
[1722690198509,2.58334883,62059.0,62058.0,0.009977]
[1722690198730,2.7481863,62059.0,62058.0,0.009977]
[1722690199897,2.6087863,62059.0,62058.0,0.009977]
[1722690200099,2.7621863,62059.0,62058.0,0.009977]
[1722690200520,2.7341863,62059.0,62058.0,0.009977]
[1722690200711,2.7481863,62059.0,62058.0,0.009977]
[1722690200915,2.7621863,62059.0,62058.0,0.009977]
[1722690201331,2.79598729,62059.0,62058.0,0.009977]
[1722690201755,2.80998729,62059.0,62058.0,0.009977]
[1722690201960,2.65719031,62059.0,62058.0,0.009977]
[1722690202160,2.68650351,62059.0,62058.0,0.009977]
[1722690202358,2.33956638,62059.0,62058.0,0.009977]
[1722690202557,2.27750351,62059.0,62058.0,0.009977]
[1722690202779,2.34014699,62059.0,62058.0,0.009977]
[1722690202981,2.35354397,62059.0,62058.0,0.009977]
[1722690203483,2.40134496,62059.0,62058.0,0.009977]
[1722690203707,2.51089914,62059.0,62058.0,0.009977]
[1722690203899,2.35354397,62059.0,62058.0,0.009977]
[1722690204535,2.4259569,62059.0,62058.0,0.009977]
[1722690204841,2.42595683,62059.0,62058.0,0.009977]
[1722690205088,2.44914596,62059.0,62058.0,0.009977]
[1722690205289,2.47304646,62059.0,62058.0,0.009977]
[1722690206162,1.58090498,62057.0,62056.0,0.001013]
[1722690206374,1.9240077,62057.0,62056.0,0.001013]
[1722690207257,2.3959077,62057.0,62056.0,0.001013]
[1722690207441,2.41051072,62057.0,62056.0,0.001013]
[1722690207645,1.63609772,62057.0,62056.0,0.001013]
[1722690207839,1.27537166,62057.0,62056.0,0.001013]
[1722690208040,1.16445424,62057.0,62056.0,0.001013]
[1722690208443,2.04350658,62057.0,62056.0,0.001013]
[1722690208640,1.22650658,62057.0,62056.0,0.001013]
[1722690208844,1.21650658,62057.0,62056.0,0.001013]
[1722690209141,1.15445424,62057.0,62056.0,0.001013]
[1722690209346,1.20272818,62057.0,62056.0,0.001013]
[1722690209543,1.15445424,62057.0,62056.0,0.001013]
[1722690209793,1.53134285,62057.0,62056.0,0.001013]
[1722690209966,1.62788845,62057.0,62056.0,0.001013]
[1722690210175,1.53134285,62057.0,62056.0,0.001013]
[1722690210381,1.65202981,62057.0,62056.0,0.001013]
[1722690210576,1.66542679,62057.0,62056.0,0.001013]
[1722690210982,1.57912981,62057.0,62056.0,0.001013]
[1722690211183,1.55497274,62057.0,62056.0,0.001013]
[1722690211382,1.57910135,62057.0,62056.0,0.001013]
[1722690211959,1.45844285,62057.0,62056.0,0.001013]
[1722690212768,1.46844285,62057.0,62056.0,0.001013]
[1722690213204,1.71904285,62057.0,62056.0,0.001013]
[1722690213406,1.73243983,62057.0,62056.0,0.001013]
[1722690213606,1.67016422,62057.0,62056.0,0.001013]
[1722690213809,1.73279311,62057.0,62056.0,0.001013]
[1722690214021,2.95779311,62057.0,62056.0,0.001013]
[1722690215380,3.0719286,62057.0,62056.0,0.001013]
[1722690215634,3.1348286,62057.0,62056.0,0.001013]
[1722690215948,3.02069311,62057.0,62056.0,0.001013]
[1722690216289,3.16539998,62057.0,62056.0,0.001013]
[1722690217391,3.02069311,62057.0,62056.0,0.001013]
[1722690218614,1.537194,62052.0,62051.0,0.009977]
[1722690218916,1.94047911,62052.0,62051.0,0.009977]
[1722690219164,0.02339698,62050.0,62049.0,0.009977]
[1722690219378,1.74285511,62050.0,62049.0,1e-06]
[1722690219597,1.92595511,62050.0,62049.0,1e-06]
[1722690220678,1.92595511,62050.0,62034.0,0.0785]
[1722690220679,1.237369,62042.0,62034.0,0.0785]
[1722690220885,2.42627719,62042.0,62034.0,0.0785]
[1722690221085,2.56707719,62042.0,62031.0,0.0613]
[1722690221291,2.86625713,62042.0,62031.0,0.0613]
[1722690221508,2.57776448,62042.0,62041.0,0.009766]
[1722690221931,2.45725713,62042.0,62041.0,0.009766]
[1722690222525,2.41284427,62042.0,62041.0,0.009766]
[1722690223146,2.41284411,62042.0,62041.0,0.009766]
[1722690223319,2.32645713,62042.0,62041.0,0.009766]
[1722690223532,2.44422809,62042.0,62041.0,0.009766]
[1722690223733,2.34785411,62042.0,62041.0,0.009766]
[1722690223929,2.43083084,62042.0,62041.0,0.009766]
[1722690224286,2.33431142,62042.0,62041.0,0.009766]
[1722690224488,2.43067493,62042.0,62041.0,0.009766]
[1722690224971,2.33431142,62042.0,62041.0,0.009766]
[1722690225414,2.46815897,62042.0,62041.0,0.009766]
[1722690225557,2.4440591,62042.0,62041.0,0.009766]
[1722690225758,2.3477084,62042.0,62041.0,0.009766]
[1722690226133,2.5022203,62042.0,62041.0,0.009766]
[1722690226543,2.3477084,62042.0,62041.0,0.009766]
[1722690226743,3.67973182,62042.0,62041.0,0.009766]
[1722690226948,3.55931142,62042.0,62041.0,0.009766]
[1722690227182,3.5727084,62042.0,62041.0,0.009766]
[1722690227383,3.66903791,62042.0,62041.0,0.009766]
[1722690227598,3.66903791,62042.0,62029.0,0.009977]
[1722690227599,0.31,62033.0,62029.0,0.009977]
[1722690227863,1.57400441,62030.0,62029.0,0.009977]
[1722690228096,2.47043299,62030.0,62029.0,0.009977]
[1722690228332,2.56670727,62030.0,62029.0,0.009977]
[1722690228547,2.47043299,62030.0,62029.0,0.009977]
[1722690229421,2.60623601,62030.0,62029.0,0.009977]
[1722690229617,1.97314389,62030.0,62029.0,0.009977]
[1722690229792,1.86282224,62030.0,62029.0,0.009977]
[1722690230206,1.92419017,62030.0,62029.0,0.009977]
[1722690230433,2.64000817,62030.0,62029.0,0.009977]
[1722690230649,2.72225879,62030.0,62029.0,0.009977]
[1722690230855,2.63940515,62030.0,62029.0,0.009977]
[1722690231071,2.05359017,62030.0,62029.0,0.009977]
[1722690231278,1.91519017,62030.0,62029.0,0.088177]
[1722690231516,1.85382224,62030.0,62029.0,0.088177]
[1722690231731,1.91526566,62030.0,62029.0,0.088177]
[1722690231937,1.59800424,62030.0,62029.0,0.088177]
[1722690232144,1.59800424,62030.0,62029.0,0.149477]
[1722690232145,1.60755791,62030.0,62029.0,0.149477]
[1722690232736,1.84937591,62030.0,62029.0,0.149477]
[1722690232942,1.84937591,62030.0,62029.0,0.009977]
[1722690233580,1.87737591,62030.0,62029.0,0.088177]
[1722690233913,1.86337591,62030.0,62029.0,0.088177]
[1722690234112,1.84937591,62030.0,62029.0,0.009977]
[1722690234338,1.86337591,62030.0,62029.0,0.009977]
[1722690234742,1.84937591,62030.0,62029.0,0.009977]
[1722690234942,1.88637591,62030.0,62029.0,0.009977]
[1722690235147,1.90037591,62030.0,62029.0,0.009977]
[1722690235499,1.88637591,62030.0,62029.0,0.009977]
[1722690236480,2.11419391,62030.0,62029.0,0.009977]
[1722690236869,2.35934585,62030.0,62029.0,0.009977]
[1722690237070,2.40823169,62030.0,62029.0,0.009977]
[1722690237288,2.88874244,62030.0,62029.0,0.009977]
[1722690237491,3.41842867,62030.0,62029.0,0.009977]
[1722690237696,2.60142867,62030.0,62029.0,0.009977]
[1722690237903,2.71161646,62030.0,62029.0,0.009977]
[1722690238111,0.241865,62018.0,62014.0,0.079]
[1722690238309,0.362814,62015.0,62014.0,0.079]
[1722690238513,1.10402524,62015.0,62014.0,0.079]
[1722690239292,0.84658,62014.0,62013.0,0.009977]
[1722690239503,1.00403924,62014.0,62013.0,0.009977]
[1722690239704,1.02703924,62014.0,62013.0,0.009977]
[1722690239880,1.12703924,62014.0,62013.0,0.009977]
[1722690240898,1.13503924,62014.0,62013.0,0.009977]
[1722690241894,1.14103924,62014.0,62013.0,0.009977]
[1722690243215,1.14103924,62014.0,62013.0,0.009937]
[1722690245072,1.11803924,62014.0,62013.0,0.009937]
[1722690250385,1.35991924,62014.0,62013.0,0.009937]
[1722690250629,1.38291924,62014.0,62013.0,0.009937]
[1722690250990,1.14103924,62014.0,62013.0,0.009937]
[1722690251807,1.11803924,62014.0,62013.0,0.009937]
[1722690252011,1.11803924,62014.0,62013.0,0.088937]
[1722690252227,0.63427924,62014.0,62013.0,0.154437]
[1722690252431,0.17145924,62014.0,62013.0,0.16104002]
[1722690252637,0.29239924,62014.0,62013.0,0.16104002]
[1722690252844,0.17145924,62014.0,62013.0,0.17817004]
[1722690253047,0.014,62014.0,62013.0,0.17817004]
[1722690253259,0.014,62014.0,62013.0,0.54099604]
[1722690253482,0.014,62014.0,62013.0,0.78288004]
[1722690254097,0.006,62014.0,62013.0,0.78288004]
[1722690254501,0.241822,62029.0,62028.0,0.15110302]
[1722690254747,0.52019224,62029.0,62028.0,0.15110302]
[1722690254954,0.27837024,62029.0,62028.0,0.15110302]
[1722690255156,0.34296124,62029.0,62028.0,0.15110302]
[1722690255931,0.58478324,62029.0,62028.0,0.15110302]
[1722690257255,0.59878324,62029.0,62028.0,0.15110302]
[1722690258213,0.61078324,62029.0,62028.0,0.15110302]
[1722690261312,0.85260524,62029.0,62028.0,0.15110302]
[1722690261869,1.09442724,62029.0,62028.0,0.15110302]
[1722690262066,0.24805024,62029.0,62028.0,0.15110302]
[1722690262274,0.30437024,62029.0,62028.0,0.15110302]
[1722690262637,0.18345924,62029.0,62028.0,0.15110302]
[1722690263038,0.18345924,62029.0,62028.0,0.16810092]
[1722690263239,0.18345924,62029.0,62028.0,0.15110302]
[1722690263440,0.18345924,62029.0,62028.0,0.16810092]
[1722690263823,0.026,62029.0,62028.0,0.16810092]
[1722690264579,0.146911,62029.0,62028.0,0.16810092]
[1722690264720,0.388733,62029.0,62028.0,0.16810092]
[1722690265092,0.388733,62029.0,62028.0,0.02360092]
[1722690265093,0.78801424,62029.0,62028.0,0.02360092]
[1722690265221,1.02983624,62029.0,62028.0,0.0169979]
[1722690265405,0.604592,62025.0,62024.0,0.08230302]
[1722690265616,0.76205124,62025.0,62024.0,0.08230302]
[1722690266487,0.76205124,62025.0,62024.0,0.00660302]
[1722690266923,0.77105124,62025.0,62024.0,0.00660302]
[1722690267119,0.77805124,62025.0,62024.0,0.00660302]
[1722690267692,1.01988824,62025.0,62024.0,0.00660302]
[1722690269512,0.846566,62015.0,62014.0,0.00817741]
[1722690269710,1.00402524,62015.0,62014.0,0.00660302]
[1722690270131,0.6047,62014.0,62013.0,0.009937]
[1722690270339,1.14623924,62014.0,62013.0,0.009937]
[1722690271166,1.00403924,62014.0,62013.0,0.009937]
[1722690271360,0.76215924,62014.0,62013.0,0.01654002]
[1722690271581,0.77015924,62014.0,62013.0,0.01654002]
[1722690273011,0.77615924,62014.0,62013.0,0.01654002]
[1722690274985,0.53427924,62014.0,62013.0,0.01654002]
[1722690275357,0.77615924,62014.0,62013.0,0.01654002]
[1722690275563,0.53427924,62014.0,62013.0,0.01654002]
[1722690276181,0.29239924,62014.0,62013.0,0.15584002]
[1722690276356,0.17145924,62014.0,62013.0,0.17079944]
[1722690276559,0.29239924,62014.0,62013.0,0.15584002]
[1722690278412,0.17145924,62014.0,62013.0,0.15584002]
[1722690278620,0.17145924,62014.0,62013.0,0.17079944]
[1722690279022,0.29239924,62014.0,62013.0,0.17079944]
[1722690279179,0.29239924,62014.0,62013.0,0.15584002]
[1722690279381,0.17145924,62014.0,62013.0,0.15584002]
[1722690279605,0.014,62014.0,62013.0,0.17079944]
[1722690281025,0.13494,62014.0,62013.0,0.15584002]
[1722690281640,0.014,62014.0,62013.0,0.17085275]
[1722690284534,0.014,62014.0,62013.0,0.29179475]
[1722690286164,0.014,62014.0,62013.0,0.53367875]
[1722690286625,0.014,62014.0,62013.0,0.29179475]
[1722690287196,0.014,62014.0,62013.0,0.17085275]
[1722690289703,0.014,62014.0,62013.0,0.10725275]
[1722690290252,0.014,62014.0,62013.0,0.22819475]
[1722690290450,0.014,62014.0,62013.0,0.10725275]
[1722690290854,0.014,62014.0,62013.0,0.53447875]
[1722690291076,0.014,62014.0,62013.0,0.78636275]
[1722690291476,0.014,62014.0,62013.0,0.91037925]
[1722690291886,0.014,62014.0,62013.0,0.66849525]
[1722690292104,0.006,62014.0,62013.0,0.53447875]
[1722690292306,0.014,62014.0,62013.0,0.29259475]
[1722690292511,0.01380592,62014.0,62013.0,0.29259475]
[1722690292713,0.008,62014.0,62013.0,0.29259475]
[1722690292922,0.009,62014.0,62013.0,0.29359475]
[1722690293122,0.009,62014.0,62013.0,0.53547875]
[1722690293395,0.008,62014.0,62013.0,0.53447875]
[1722690293587,0.008,62014.0,62013.0,0.53547875]
[1722690294044,0.008,62014.0,62013.0,0.29359475]
[1722690294246,0.120933,62018.0,62017.0,0.00660302]
[1722690294630,0.120931,62019.0,62017.0,0.02191783]
[1722690294838,0.120931,62019.0,62018.0,0.00660302]
[1722690295033,0.120931,62019.0,62018.0,0.02189474]
[1722690296144,0.15745924,62020.0,62019.0,0.00660302]
[1722690296357,0.27838724,62020.0,62019.0,0.00660302]
[1722690296558,0.27838724,62020.0,62019.0,0.02189182]
[1722690298228,0.15745924,62020.0,62019.0,0.02189182]
[1722690299197,0.27838724,62020.0,62019.0,0.02189182]
[1722690299399,0.28238724,62020.0,62019.0,0.02189182]
[1722690299665,0.16145924,62020.0,62019.0,0.02189182]
[1722690299827,0.16245924,62020.0,62019.0,0.02189182]
[1722690299983,0.28338724,62020.0,62019.0,0.02189182]
[1722690300190,0.16245924,62020.0,62019.0,0.02189182]
[1722690301700,0.16328924,62020.0,62019.0,0.02189182]
[1722690302136,0.16328924,62020.0,62019.0,0.14282182]
[1722690302342,0.00583,62020.0,62019.0,0.76324382]
[1722690302959,0.00583,62020.0,62019.0,0.89725498]
[1722690303398,0.00583,62020.0,62019.0,0.89725337]
[1722690304366,0.00583,62020.0,62019.0,0.65539237]
[1722690304790,0.00583,62020.0,62019.0,0.52138282]
[1722690305131,0.37576857,62032.0,62019.0,0.39985282]
[1722690305335,0.24496763,62032.0,62031.0,0.00600302]
[1722690305748,0.48677763,62032.0,62031.0,0.00600302]
[1722690305950,0.72858763,62032.0,62031.0,0.00600302]
[1722690306546,0.74258763,62032.0,62031.0,0.00600302]
[1722690306901,0.64423687,62032.0,62031.0,0.00600302]
[1722690307108,0.65823687,62032.0,62031.0,0.00600302]
[1722690307306,0.64423687,62032.0,62031.0,0.00600302]
[1722690307719,0.65823687,62032.0,62031.0,0.00600302]
[1722690307891,0.67223687,62032.0,62031.0,0.00600302]
[1722690308097,0.36442687,62032.0,62031.0,0.00600302]
[1722690309178,0.028,62032.0,62031.0,0.74253802]
[1722690309395,0.028,62032.0,62031.0,0.81303802]
[1722690309594,0.028,62032.0,62031.0,1.20543644]
[1722690310153,0.014,62032.0,62031.0,1.20743644]
[1722690310357,0.028,62032.0,62031.0,1.22842939]
[1722690310704,0.014,62032.0,62031.0,1.22842939]
[1722690311149,0.028,62032.0,62031.0,1.62770263]
[1722690311315,0.014,62032.0,62031.0,1.72770263]
[1722690311520,0.00083,62042.0,62041.0,0.85221502]
[1722690311726,0.00083,62042.0,62041.0,0.56116502]
[1722690311926,0.00083,62042.0,62041.0,0.80294002]
[1722690312124,0.00083,62042.0,62041.0,0.81962111]
[1722690312726,0.00083,62042.0,62041.0,0.14357111]
[1722690313263,0.00083,62042.0,62041.0,0.02268411]
[1722690313396,0.52094524,62042.0,62041.0,0.02268411]
[1722690313601,0.76471624,62042.0,62041.0,0.02268411]
[1722690313798,0.85171624,62042.0,62041.0,0.00600302]
[1722690314204,0.84671624,62042.0,62041.0,0.00600302]
[1722690314662,0.85271624,62042.0,62041.0,0.00700302]
[1722690315401,1.09448724,62042.0,62041.0,0.001]
[1722690315607,1.16048724,62042.0,62041.0,0.001]
[1722690316206,0.604437,62041.0,62040.0,0.00600302]
[1722690316407,0.76189624,62041.0,62040.0,0.00600302]
[1722690316822,0.52012124,62041.0,62040.0,0.00600302]
[1722690317446,0.27834624,62041.0,62040.0,0.00600302]
[1722690317647,0.16045924,62041.0,62040.0,0.00600302]
[1722690317758,0.16145924,62041.0,62040.0,0.02267673]
[1722690317964,0.28234624,62041.0,62040.0,0.02267673]
[1722690318171,0.28234624,62041.0,62040.0,0.00600302]
[1722690318172,0.52412124,62041.0,62040.0,0.00600302]
[1722690318577,0.76589624,62041.0,62040.0,0.00600302]
[1722690318807,0.84419624,62041.0,62040.0,0.00600302]
[1722690319474,0.84419624,62041.0,62038.0,0.00600302]
[1722690319475,0.604457,62039.0,62038.0,0.00600302]
[1722690319676,0.76191624,62039.0,62038.0,0.00600302]
[1722690320667,0.76291624,62039.0,62038.0,0.00600302]
[1722690321085,0.76291624,62039.0,62038.0,0.00800302]
[1722690322866,0.259205,62032.0,62031.0,0.00157439]
[1722690323086,0.120915,62027.0,62026.0,0.00157439]
[1722690323297,0.120913,62028.0,62026.0,0.00157439]
[1722690323497,0.27837224,62028.0,62023.0,0.12249639]
[1722690323752,0.27837224,62028.0,62023.0,0.00157439]
[1722690323960,0.27837224,62028.0,62023.0,0.12249639]
[1722690324370,0.15745924,62028.0,62026.0,0.00157439]
[1722690324567,0.15745924,62028.0,62021.0,0.483704]
[1722690324568,0.27837224,62028.0,62024.0,0.12092]
[1722690324781,0.27937224,62028.0,62023.0,0.003]
[1722690325013,0.40028724,62028.0,62024.0,0.00157439]
[1722690325221,0.120917,62026.0,62024.0,0.00157439]
[1722690325412,0.120917,62026.0,62020.0,0.0613]
[1722690325413,0.120917,62026.0,62023.0,0.003]
[1722690325789,0.52120124,62028.0,62024.0,0.00157439]
[1722690325994,0.15745924,62027.0,62024.0,0.00157439]
[1722690326236,0.15745924,62027.0,62024.0,0.12249439]
[1722690326409,0.15745924,62027.0,62024.0,0.12092]
[1722690326620,0.15745924,62027.0,62025.0,0.01666642]
[1722690326822,0.001,62026.0,62025.0,0.01666642]
[1722690327384,0.15745924,62027.0,62025.0,0.01666642]
[1722690327597,0.001,62026.0,62020.0,0.0713]
[1722690327793,0.15745924,62027.0,62026.0,0.120917]
[1722690327993,0.15745924,62027.0,62026.0,0.3794145]
[1722690328819,0.15845924,62027.0,62026.0,0.3794145]
[1722690329197,0.15845924,62027.0,62026.0,0.1375805]
[1722690329403,0.15745924,62027.0,62026.0,0.3794145]
[1722690329653,0.24179,62038.0,62030.0,0.0613]
[1722690329828,0.15745924,62037.0,62033.0,0.120902]
[1722690330235,0.120898,62036.0,62031.0,0.120907]
[1722690330432,0.15745924,62035.0,62034.0,0.01667381]
[1722690330634,0.15745924,62035.0,62031.0,0.120906]
[1722690330835,0.15745924,62035.0,62034.0,0.01667381]
[1722690331216,0.15745924,62035.0,62031.0,0.120906]
[1722690331439,0.15745924,62035.0,62034.0,0.01667381]
[1722690331881,0.15745924,62035.0,62034.0,0.01560665]
[1722690331882,0.15945924,62035.0,62034.0,0.01560665]
[1722690332089,0.15945924,62035.0,62032.0,0.120903]
[1722690332290,0.15945924,62035.0,62034.0,0.01560068]
[1722690332620,0.15745924,62035.0,62032.0,0.120903]
[1722690332823,0.16145924,62035.0,62033.0,0.01560182]
[1722690333027,0.16245924,62035.0,62033.0,0.01560182]
[1722690333227,0.16245924,62035.0,62033.0,0.13650382]
[1722690333427,0.15845924,62035.0,62033.0,0.13650382]
[1722690333651,0.16145924,62035.0,62033.0,0.13650382]
[1722690333852,0.16145924,62035.0,62033.0,0.01560182]
[1722690334053,0.16145924,62035.0,62033.0,0.120902]
[1722690334393,0.16045924,62035.0,62034.0,0.01560068]
[1722690335396,0.16145924,62035.0,62034.0,0.01560068]
[1722690335585,0.16045924,62035.0,62030.0,0.12248239]
[1722690335783,0.28135924,62035.0,62030.0,0.12248239]
[1722690335980,0.27835924,62035.0,62032.0,0.00157439]
[1722690336409,0.120904,62033.0,62031.0,0.00157439]
[1722690336612,0.15745924,62033.0,62029.0,0.000913]
[1722690336843,0.15745924,62033.0,62032.0,0.01561775]
[1722690337013,0.15745924,62033.0,62030.0,0.00157439]
[1722690337226,0.15745924,62033.0,62030.0,0.13810341]
[1722690337425,0.15745924,62033.0,62031.0,0.120907]
[1722690337634,0.15745924,62033.0,62032.0,0.00157439]
[1722690337978,0.15745924,62033.0,62032.0,0.01719214]
[1722690338916,0.15845924,62033.0,62032.0,0.01719214]
[1722690339110,0.15845924,62033.0,62032.0,0.01819214]
[1722690339305,0.15845924,62033.0,62032.0,0.01661775]
[1722690339515,0.15845924,62033.0,62032.0,0.01819214]
[1722690339982,0.15845924,62033.0,62032.0,0.01661775]
[1722690341351,0.15845924,62033.0,62032.0,0.13752275]
[1722690343657,0.15845924,62033.0,62032.0,0.01661775]
[1722690344068,0.15845924,62033.0,62032.0,0.01819214]
[1722690345780,0.15845924,62033.0,62032.0,0.01661775]
[1722690345982,0.52116824,62033.0,62032.0,0.01661775]
[1722690346221,0.27936224,62033.0,62032.0,0.01661775]
[1722690346435,0.27936224,62033.0,62032.0,0.001]
[1722690346991,0.27936224,62033.0,62032.0,0.01661908]
[1722690347190,0.15845924,62033.0,62032.0,0.001]
[1722690347756,0.15845924,62033.0,62032.0,0.01661908]
[1722690347968,0.58136824,62033.0,62032.0,0.01661908]
[1722690348146,0.90457424,62033.0,62032.0,0.01661908]
[1722690348383,0.90457424,62033.0,62032.0,0.001]
[1722690348962,0.66276824,62033.0,62032.0,0.001]
[1722690349198,0.42096224,62033.0,62032.0,0.001]
[1722690349411,0.30005924,62033.0,62032.0,0.001]
[1722690349894,0.30005924,62033.0,62032.0,0.0166248]
[1722690350140,0.30005924,62033.0,62032.0,0.001]
[1722690350353,0.33956224,62033.0,62032.0,0.001]
[1722690350560,0.33956224,62033.0,62032.0,0.0166248]
[1722690350737,0.58136824,62033.0,62032.0,0.001]
[1722690352881,0.33956224,62033.0,62032.0,0.001]
[1722690353297,0.58136824,62033.0,62032.0,0.001]
[1722690357127,0.82317424,62033.0,62032.0,0.001]
[1722690357330,0.58136824,62033.0,62032.0,0.001]
[1722690357963,0.82317424,62033.0,62032.0,0.001]
[1722690358215,0.90317424,62033.0,62032.0,0.001]
[1722690358534,0.97554047,62033.0,62032.0,0.001]
[1722690359372,0.97559901,62033.0,62032.0,0.001]
[1722690359588,0.97560103,62033.0,62032.0,0.001]
[1722690360167,0.90317424,62033.0,62032.0,0.001]
[1722690360587,0.95146523,62033.0,62032.0,0.001]
[1722690360831,0.90317424,62033.0,62032.0,0.001]
[1722690360971,0.95146472,62033.0,62032.0,0.001]
[1722690361397,0.97560871,62033.0,62032.0,0.001]
[1722690362208,0.95146701,62033.0,62032.0,0.001]
[1722690362611,0.90317424,62033.0,62032.0,0.001]
[1722690363293,0.95146932,62033.0,62032.0,0.001]
[1722690363794,0.90317424,62033.0,62032.0,0.001]
[1722690366135,0.66136824,62033.0,62032.0,0.001]
[1722690366337,0.70965302,62033.0,62032.0,0.001]
[1722690366908,0.32764702,62033.0,62032.0,0.001]
[1722690367109,0.27936224,62033.0,62032.0,0.01663312]
[1722690367303,0.27936224,62033.0,62032.0,0.001]
[1722690367697,0.15845924,62033.0,62032.0,0.001]
[1722690367926,0.15845924,62033.0,62032.0,0.01663312]
[1722690368530,0.15845924,62033.0,62032.0,0.001]
[1722690368734,0.15845924,62033.0,62032.0,0.01820751]
[1722690370135,0.15845924,62033.0,62032.0,0.01912051]
[1722690371082,0.15845924,62033.0,62032.0,0.14002551]
[1722690371294,0.15845924,62033.0,62032.0,0.01754612]
[1722690371494,0.39966224,62033.0,62032.0,0.01754612]
[1722690371734,0.93155902,62033.0,62032.0,0.01754612]
[1722690371964,0.64146824,62033.0,62032.0,0.001913]
[1722690372154,0.71391387,62033.0,62032.0,0.001913]
[1722690373464,0.89991987,62033.0,62032.0,0.001913]
[1722690373672,0.65811387,62033.0,62032.0,0.001913]
[1722690373879,0.58566824,62033.0,62032.0,0.001913]
[1722690374287,0.65811387,62033.0,62032.0,0.001913]
[1722690374478,0.58566824,62033.0,62032.0,0.001913]
[1722690374690,0.65811387,62033.0,62032.0,0.001913]
[1722690375007,0.89991987,62033.0,62032.0,0.001913]
[1722690375818,0.82747424,62033.0,62032.0,0.001913]
[1722690375995,1.33369284,62033.0,62032.0,0.001913]
[1722690377556,1.33369284,62033.0,62032.0,0.000913]
[1722690378166,1.33269284,62033.0,62032.0,0.000913]
[1722690378296,1.33469284,62033.0,62032.0,0.000913]
[1722690379100,1.45534392,62033.0,62032.0,0.000913]
[1722690379518,1.33469284,62033.0,62032.0,0.000913]
[1722690380550,1.34924553,62033.0,62032.0,0.000913]
[1722690382791,1.46987471,62033.0,62032.0,0.000913]
[1722690383461,1.46987161,62033.0,62032.0,0.000913]
[1722690384085,1.39390632,62033.0,62032.0,0.000913]
[1722690384328,1.46990681,62033.0,62032.0,0.000913]
[1722690385697,1.46989531,62033.0,62032.0,0.000913]
[1722690385878,1.34928073,62033.0,62032.0,0.000913]
[1722690387663,1.34923677,62033.0,62032.0,0.000913]
[1722690389305,2.07084277,62033.0,62032.0,0.000913]
[1722690389542,0.12094,62014.0,62010.0,0.47251164]
[1722690389837,0.1382,62023.0,62015.0,0.120938]
[1722690389838,0.04822232,62016.0,62015.0,0.120938]
[1722690390043,0.297,62017.0,62016.0,0.504009]
[1722690391059,0.297,62017.0,62016.0,0.262136]
[1722690391844,0.297,62017.0,62016.0,0.505009]
[1722690392037,0.298,62017.0,62016.0,0.505009]
[1722690392424,0.298,62017.0,62016.0,0.508009]
[1722690398456,0.298,62017.0,62016.0,0.1452]
[1722690399399,0.298,62017.0,62016.0,0.1422]
[1722690399653,0.3,62017.0,62016.0,0.1422]